bitfinex/quotes_BTCUSD_20250115
["timestamp","ask_amount","ask_price","bid_price","bid_amount"]
[1736961621603,0.4724,99282.0,99281.0,0.12970505]
[1736961622059,0.4724,99282.0,99281.0,0.13270505]
[1736961623343,0.4724,99282.0,99281.0,0.13170505]
[1736961623703,0.4704,99282.0,99281.0,0.13170505]
[1736961623906,0.47219634,99282.0,99281.0,0.12970505]
[1736961624483,0.47319634,99282.0,99281.0,0.12970505]
[1736961624608,0.00279634,99282.0,99281.0,0.23593197]
[1736961625016,0.00179634,99282.0,99281.0,0.23393197]
[1736961625241,0.00179634,99282.0,99281.0,1.73593197]
[1736961625616,0.00179634,99282.0,99281.0,1.73393197]
[1736961626361,0.00179634,99282.0,99281.0,1.73493197]
[1736961626702,0.00179634,99282.0,99281.0,2.03710197]
[1736961626921,0.00179634,99282.0,99281.0,2.04410197]
[1736961627146,0.00279634,99282.0,99281.0,2.04710197]
[1736961627345,0.00179634,99282.0,99281.0,2.03910197]
[1736961627719,0.00279634,99282.0,99281.0,2.04510197]
[1736961627980,0.00179634,99282.0,99281.0,2.04010197]
[1736961628281,0.00279634,99282.0,99281.0,2.04910197]
[1736961628485,0.00279634,99282.0,99281.0,2.04010197]
[1736961628843,0.00379634,99282.0,99281.0,2.04910197]
[1736961629094,0.00379634,99282.0,99281.0,1.94487505]
[1736961629953,0.00379634,99282.0,99281.0,1.94087505]
[1736961630113,0.00179634,99282.0,99281.0,1.93187505]
[1736961630320,0.00279634,99282.0,99281.0,1.94487505]
[1736961630676,0.00179634,99282.0,99281.0,1.93587505]
[1736961630904,0.00179634,99282.0,99281.0,1.93187505]
[1736961631079,0.00279634,99282.0,99281.0,1.94487505]
[1736961631283,0.00179634,99282.0,99281.0,1.93587505]
[1736961631797,0.00179634,99282.0,99281.0,1.9390472]
[1736961632132,0.00279634,99282.0,99281.0,1.9470472]
[1736961632533,0.00279634,99282.0,99281.0,2.05127412]
[1736961632946,0.00279634,99282.0,99281.0,2.04727412]
[1736961633153,0.00179634,99282.0,99281.0,2.04227412]
[1736961633362,0.01005375,99303.0,99281.0,2.17227412]
[1736961633574,0.00179593,99310.0,99301.0,0.201406]
[1736961633778,0.00179593,99310.0,99306.0,0.1237]
[1736961634008,0.00179593,99310.0,99307.0,0.0764]
[1736961634216,0.00179593,99310.0,99309.0,1.5]
[1736961634417,0.00179593,99310.0,99309.0,2.02981692]
[1736961635254,0.00179593,99310.0,99309.0,2.22981692]
[1736961635459,0.3204,99345.0,99321.0,0.324867]
[1736961635641,0.201323,99343.0,99321.0,0.42909392]
[1736961635976,0.00987977,99337.0,99321.0,0.73114392]
[1736961636388,0.00987977,99337.0,99321.0,2.02977692]
[1736961636638,0.201339,99335.0,99321.0,2.02977692]
[1736961636849,0.201339,99335.0,99321.0,2.03677692]
[1736961637052,0.0027974,99322.0,99321.0,2.03677692]
[1736961637254,0.0027974,99322.0,99321.0,2.03377692]
[1736961637467,0.0037974,99322.0,99321.0,2.04277692]
[1736961637891,0.0037974,99322.0,99321.0,2.03877692]
[1736961638110,0.0037974,99322.0,99321.0,2.04177692]
[1736961638340,0.0017974,99322.0,99321.0,1.92855]
[1736961638587,0.0017974,99322.0,99321.0,0.42855]
[1736961638804,0.0017974,99322.0,99321.0,0.38115]
[1736961639627,0.0027974,99322.0,99321.0,0.38815]
[1736961639854,0.0027974,99322.0,99321.0,0.38515]
[1736961640286,0.0017974,99322.0,99321.0,0.38215]
[1736961640727,0.0017974,99322.0,99321.0,0.37815]
[1736961640904,0.0017974,99322.0,99321.0,0.38115]
[1736961641147,0.0017974,99322.0,99321.0,1.88415]
[1736961641387,0.0017974,99322.0,99321.0,1.88115]
[1736961641567,0.0017974,99322.0,99321.0,1.88515]
[1736961641568,0.0027974,99322.0,99321.0,1.88515]
[1736961642072,0.2041624,99322.0,99321.0,0.38515]
[1736961642898,0.0027974,99322.0,99321.0,0.38515]
[1736961643132,0.0027974,99322.0,99321.0,0.38815]
[1736961643303,0.0017974,99322.0,99321.0,0.38115]
[1736961643506,0.0017974,99322.0,99321.0,0.37815]
[1736961643708,0.0017974,99322.0,99321.0,0.38115]
[1736961643942,0.0027974,99322.0,99321.0,0.38815]
[1736961644346,0.0027974,99322.0,99321.0,0.38115]
[1736961644550,0.0037974,99322.0,99321.0,0.38815]
[1736961644761,0.0037974,99322.0,99321.0,0.31205]
[1736961646044,0.0037974,99322.0,99321.0,1.81205]
[1736961649177,0.0037974,99322.0,99321.0,0.31205]
[1736961649692,0.0037974,99322.0,99321.0,1.81205]
[1736961652857,0.0037974,99322.0,99321.0,0.31205]
[1736961653425,0.0037974,99322.0,99321.0,1.81205]
[1736961658342,0.0037974,99322.0,99321.0,1.81205]
[1736961659759,0.0037974,99322.0,99321.0,0.31205]
[1736961661407,0.25802432,99322.0,99321.0,0.31205]
[1736961661755,0.86772032,99322.0,99321.0,0.19863808]
[1736961662104,0.86772032,99322.0,99321.0,0.18863808]
[1736961662105,0.86572032,99322.0,99321.0,0.18863808]
[1736961662437,0.86572032,99322.0,99321.0,0.13187808]
[1736961662579,1.18612032,99322.0,99321.0,0.08385808]
[1736961662764,1.19012032,99322.0,99321.0,0.08385808]
[1736961663199,1.19212032,99322.0,99321.0,0.08385808]
[1736961663955,1.19212032,99322.0,99321.0,0.02422108]
[1736961664166,0.4704,99304.0,99282.0,1.5]
[1736961664413,0.351444,99283.0,99282.0,1.5]
[1736961664622,0.357564,99283.0,99282.0,1.50004985]
[1736961665423,0.357564,99283.0,99282.0,1.50104985]
[1736961665619,0.357564,99283.0,99282.0,1.50004985]
[1736961666047,0.360564,99283.0,99282.0,1.50004985]
[1736961666831,0.360564,99283.0,99282.0,4.985e-05]
[1736961668638,0.37069569,99283.0,99282.0,4.985e-05]
[1736961670683,0.16925169,99283.0,99282.0,4.985e-05]
[1736961670899,0.16925169,99283.0,99282.0,1.62554985]
[1736961671092,0.15912,99283.0,99282.0,1.62554985]
[1736961671290,0.00612,99283.0,99282.0,1.62554985]
[1736961671504,0.00699858,99283.0,99282.0,1.62554985]
[1736961671912,0.00599858,99283.0,99282.0,1.62554985]
[1736961672286,0.00612,99289.0,99283.0,0.0784]
[1736961673054,0.00612,99289.0,99288.0,1.5]
[1736961674270,0.00612,99289.0,99288.0,1.88055]
[1736961674826,0.207552,99289.0,99288.0,1.88055]
[1736961675028,0.357552,99289.0,99288.0,0.38255]
[1736961675431,0.357552,99289.0,99288.0,0.38655]
[1736961676324,0.357552,99289.0,99288.0,0.38255]
[1736961677326,0.357552,99289.0,99288.0,0.30215]
[1736961677543,0.46177892,99289.0,99288.0,0.30215]
[1736961681083,0.351432,99289.0,99288.0,0.30215]
[1736961681307,0.357552,99289.0,99288.0,0.30215]
[1736961681644,0.351432,99289.0,99288.0,0.30215]
[1736961681851,0.357552,99289.0,99288.0,1.80215]
[1736961682662,0.357552,99289.0,99288.0,1.80315]
[1736961682908,0.357552,99289.0,99288.0,1.80215]
[1736961683287,0.357552,99289.0,99288.0,0.30215]
[1736961684633,0.46177892,99289.0,99288.0,0.30215]
[1736961685441,0.46357526,99289.0,99288.0,0.30215]
[1736961686029,0.46457526,99289.0,99288.0,0.30215]
[1736961686698,0.46757526,99289.0,99288.0,0.30215]
[1736961687044,0.46757526,99289.0,99288.0,0.26608729]
[1736961687045,1.43805226,99289.0,99288.0,0.26608729]
[1736961687273,2.09467826,99289.0,99288.0,0.26608729]
[1736961687503,2.12285269,99289.0,99288.0,0.26608729]
[1736961687841,2.12185269,99289.0,99288.0,0.18478175]
[1736961688043,1.89063469,99289.0,99288.0,0.18478175]
[1736961688258,1.11225726,99289.0,99288.0,0.18478175]
[1736961688471,0.94329426,99289.0,99288.0,0.18478175]
[1736961688675,0.94429426,99289.0,99288.0,0.18478175]
[1736961689305,0.78185526,99289.0,99288.0,0.18478175]
[1736961689529,0.92015026,99289.0,99288.0,0.18478175]
[1736961690164,0.91403026,99289.0,99288.0,0.18478175]
[1736961690387,0.92015026,99289.0,99288.0,0.18478175]
[1736961692602,1.04315026,99289.0,99288.0,0.10420975]
[1736961692811,1.04315026,99289.0,99288.0,0.02794926]
[1736961693033,1.04315026,99289.0,99288.0,2.6e-07]
[1736961693280,0.91097526,99289.0,99288.0,2.6e-07]
[1736961693433,0.81097526,99289.0,99288.0,2.6e-07]
[1736961694057,0.91097526,99289.0,99288.0,2.6e-07]
[1736961694458,0.81097526,99289.0,99288.0,2.6e-07]
[1736961694667,0.91097526,99289.0,99288.0,2.6e-07]
[1736961694814,0.81097526,99289.0,99288.0,2.6e-07]
[1736961695829,0.78185526,99289.0,99288.0,2.6e-07]
[1736961696078,0.78797526,99289.0,99288.0,2.6e-07]
[1736961696280,0.78185526,99289.0,99288.0,2.6e-07]
[1736961696700,0.52762834,99289.0,99288.0,2.6e-07]
[1736961697048,0.53374834,99289.0,99288.0,2.6e-07]
[1736961697567,0.52362834,99289.0,99288.0,0.00085566]
[1736961697770,0.00179634,99289.0,99288.0,0.00085566]
[1736961697970,0.00179634,99289.0,99288.0,0.12455566]
[1736961698169,0.00179634,99289.0,99288.0,0.22878258]
[1736961698372,0.002,99289.0,99288.0,0.15218258]
[1736961699041,0.00612,99302.0,99290.0,0.20143]
[1736961699240,0.11676404,99320.0,99301.0,0.201407]
[1736961699440,0.00612,99318.0,99311.0,1.5]
[1736961699615,0.207494,99318.0,99311.0,2.10423]
[1736961700020,0.15,99313.0,99311.0,2.10423]
[1736961700231,0.357505,99312.0,99311.0,2.10423]
[1736961701334,0.351385,99312.0,99311.0,0.60423]
[1736961701581,0.358505,99312.0,99311.0,0.60423]
[1736961701891,0.357505,99312.0,99311.0,0.60423]
[1736961702088,0.357505,99312.0,99311.0,0.60523]
[1736961702311,0.357505,99312.0,99311.0,0.60423]
[1736961702489,0.677905,99312.0,99311.0,0.60423]
[1736961702696,0.678905,99312.0,99311.0,0.60423]
[1736961703315,0.78313192,99312.0,99311.0,0.60423]
[1736961703488,0.78313192,99312.0,99311.0,0.60073]
[1736961704129,0.78213192,99312.0,99311.0,0.60073]
[1736961704352,0.78213192,99312.0,99311.0,0.59070546]
[1736961704536,0.78213192,99312.0,99311.0,0.51662174]
[1736961704711,0.78313192,99312.0,99311.0,0.51662174]
[1736961704943,1.91001992,99312.0,99311.0,0.51662174]
[1736961705118,1.83144592,99312.0,99311.0,0.51662174]
[1736961705309,1.73897092,99312.0,99311.0,0.51662174]
[1736961705509,1.86197092,99312.0,99311.0,0.41592674]
[1736961705720,1.86197092,99312.0,99311.0,0.30635799]
[1736961705721,2.04097808,99312.0,99311.0,0.30635799]
[1736961705916,2.03997808,99312.0,99311.0,0.18898301]
[1736961706166,2.08287808,99312.0,99311.0,0.07223789]
[1736961706581,2.08287808,99312.0,99311.0,0.04511987]
[1736961706735,2.08587808,99312.0,99311.0,0.04511987]
[1736961706934,2.05447092,99312.0,99311.0,0.00484187]
[1736961707133,2.15569784,99312.0,99311.0,8.7e-07]
[1736961707385,0.671832,99289.0,99288.0,0.0008554]
[1736961707624,0.77605892,99289.0,99288.0,0.0008554]
[1736961709027,0.78205892,99289.0,99288.0,0.0008554]
[1736961709198,0.77605892,99289.0,99288.0,0.0008554]
[1736961710319,0.68369405,99289.0,99288.0,0.0008554]
[1736961710534,0.68981405,99289.0,99288.0,0.0793554]
[1736961710712,0.68781405,99289.0,99288.0,0.0793554]
[1736961710913,0.68781405,99289.0,99288.0,1.5793554]
[1736961711117,0.68981405,99289.0,99288.0,1.5793554]
[1736961711356,0.69481405,99289.0,99288.0,1.5793554]
[1736961711575,0.68169405,99289.0,99288.0,1.5793554]
[1736961711776,0.79204097,99289.0,99288.0,0.0008554]
[1736961711990,0.78892097,99289.0,99288.0,0.0008554]
[1736961712325,0.95684097,99289.0,99288.0,0.0008554]
[1736961712533,0.95984097,99289.0,99288.0,0.0008554]
[1736961712733,0.95684097,99289.0,99288.0,0.0008554]
[1736961712844,0.95784097,99289.0,99288.0,0.0008554]
[1736961713048,0.79304097,99289.0,99288.0,0.0008554]
[1736961713248,1.25204397,99289.0,99288.0,0.0008554]
[1736961713451,1.25104397,99289.0,99288.0,0.0008554]
[1736961713694,1.25304397,99289.0,99288.0,0.0008554]
[1736961713895,1.01442597,99289.0,99288.0,0.0008554]
[1736961714228,0.99265597,99289.0,99288.0,0.0008554]
[1736961714648,0.99365597,99289.0,99288.0,0.0008554]
[1736961714776,0.99065597,99289.0,99288.0,0.0008554]
[1736961715176,0.99565597,99289.0,99288.0,0.0008554]
[1736961715378,0.99065597,99289.0,99288.0,0.0008554]
[1736961715802,0.99865597,99289.0,99288.0,0.0018554]
[1736961716000,0.99765597,99289.0,99288.0,0.0018554]
[1736961716420,0.99965597,99289.0,99288.0,0.0018554]
[1736961716682,0.99765597,99289.0,99288.0,0.0018554]
[1736961717253,1.00065597,99289.0,99288.0,0.0018554]
[1736961717902,0.351442,99284.0,99282.0,0.00090495]
[1736961718110,0.45566892,99284.0,99282.0,0.00090495]
[1736961719453,0.45766892,99284.0,99282.0,0.00090495]
[1736961720413,0.46366892,99284.0,99283.0,0.0018554]
[1736961721241,0.15,99281.0,99265.0,0.1256]
[1736961721440,0.15,99271.0,99269.0,0.0004555]
[1736961721613,0.201466,99272.0,99256.0,0.0785]
[1736961721614,0.4704,99269.0,99256.0,0.0785]
[1736961721829,0.351517,99247.0,99246.0,0.0785]
[1736961722030,0.357597,99247.0,99246.0,0.0785]
[1736961722233,0.357597,99247.0,99246.0,0.0869977]
[1736961723285,0.357597,99247.0,99246.0,0.0879977]
[1736961723814,0.78222392,99247.0,99246.0,0.0094977]
[1736961724235,0.79240742,99247.0,99246.0,0.0114977]
[1736961724813,0.79240742,99247.0,99246.0,0.0094977]
[1736961725171,0.79240742,99247.0,99246.0,0.0084977]
[1736961725380,0.79640742,99247.0,99246.0,0.0084977]
[1736961725988,0.79540742,99247.0,99246.0,0.0084977]
[1736961726405,0.79640742,99247.0,99246.0,0.0084977]
[1736961726607,0.79340742,99247.0,99246.0,0.0084977]
[1736961726808,0.79240742,99247.0,99246.0,0.0084977]
[1736961727008,0.79640742,99247.0,99246.0,0.0084977]
[1736961727218,0.79340742,99247.0,99246.0,0.0084977]
[1736961727424,0.79640742,99247.0,99246.0,0.0084977]
[1736961728047,0.80140742,99247.0,99246.0,0.0084977]
[1736961728248,0.79740742,99247.0,99246.0,0.0084977]
[1736961728450,0.79240742,99247.0,99246.0,0.0084977]
[1736961728622,0.79340742,99247.0,99246.0,0.0084977]
[1736961729032,0.79240742,99247.0,99246.0,0.0084977]
[1736961729456,0.79440742,99247.0,99246.0,0.0084977]
[1736961729901,0.79740742,99247.0,99246.0,0.0084977]
[1736961730107,0.79440742,99247.0,99246.0,0.0084977]
[1736961730309,0.80040742,99247.0,99246.0,0.0094977]
[1736961733538,0.82340742,99247.0,99246.0,1e-08]
[1736961733744,2.199345,99246.0,99227.0,0.12887962]
[1736961733984,0.351556,99228.0,99227.0,0.12887962]
[1736961734190,0.351556,99228.0,99227.0,0.08159908]
[1736961735449,0.77618292,99228.0,99227.0,0.08259908]
[1736961735664,0.77618292,99228.0,99227.0,0.00149908]
[1736961735868,0.77618292,99228.0,99227.0,0.00249908]
[1736961736069,2.38447792,99228.0,99227.0,0.00249908]
[1736961736270,1.7632363,99228.0,99227.0,0.00249908]
[1736961736476,1.7072263,99228.0,99227.0,0.00249908]
[1736961736706,1.7072263,99228.0,99227.0,0.00149908]
[1736961736914,1.7072263,99228.0,99227.0,8e-08]
[1736961737127,0.7075503,99228.0,99227.0,8e-08]
[1736961737436,0.7075503,99228.0,99209.0,0.0008551]
[1736961737437,0.474568,99222.0,99221.0,1.8e-07]
[1736961737637,0.58491492,99222.0,99221.0,1.1e-07]
[1736961738367,0.58479344,99222.0,99221.0,1.1e-07]
[1736961739108,0.58479344,99222.0,99191.0,0.00052148]
[1736961739109,0.67201,99201.0,99200.0,0.00077521]
[1736961739329,0.67201,99201.0,99168.0,0.00381822]
[1736961739330,0.15,99184.0,99183.0,0.07272873]
[1736961739534,0.15,99182.0,99168.0,0.00381822]
[1736961739744,0.201647,99183.0,99168.0,0.00381822]
[1736961739745,0.351657,99178.0,99170.0,0.00012148]
[1736961739953,0.45588392,99178.0,99172.0,0.00012148]
[1736961740367,0.45588392,99178.0,99168.0,0.0039397]
[1736961740791,0.45588392,99178.0,99168.0,0.00012148]
[1736961740943,0.46982272,99178.0,99168.0,0.00012148]
[1736961741145,0.46582272,99178.0,99168.0,0.00012148]
[1736961741628,0.46982272,99178.0,99169.0,0.00012148]
[1736961741843,0.47082272,99178.0,99169.0,0.00012148]
[1736961742500,0.47082272,99178.0,99170.0,0.0811]
[1736961743178,0.81422272,99178.0,99160.0,0.08122148]
[1736961743592,1.41897872,99178.0,99160.0,0.08122148]
[1736961743950,1.41897872,99178.0,99177.0,0.02917786]
[1736961744376,1.41897872,99178.0,99146.0,0.0008552]
[1736961744377,0.35171,99152.0,99146.0,0.0008552]
[1736961744550,0.46205692,99152.0,99151.0,0.00050076]
[1736961745551,0.46205692,99152.0,99151.0,0.00150076]
[1736961745752,0.46205692,99152.0,99151.0,0.00250076]
[1736961746359,0.47220196,99152.0,99151.0,0.00250076]
[1736961746757,0.46608196,99152.0,99151.0,0.00050076]
[1736961746968,0.36793504,99152.0,99151.0,0.00062224]
[1736961747222,0.36793504,99152.0,99151.0,0.00162224]
[1736961747397,0.36793504,99152.0,99151.0,0.00062224]
[1736961747791,0.36993504,99152.0,99151.0,0.00062224]
[1736961748225,0.36385504,99152.0,99151.0,0.00062224]
[1736961748469,0.36993504,99152.0,99151.0,0.00162224]
[1736961748647,0.36385504,99152.0,99151.0,0.00162224]
[1736961749046,0.36993504,99152.0,99151.0,0.00162224]
[1736961749514,0.36993504,99152.0,99151.0,1.50162224]
[1736961749871,0.36385504,99152.0,99151.0,1.50162224]
[1736961750075,0.36993504,99152.0,99151.0,1.50262224]
[1736961751109,0.36997504,99152.0,99151.0,1.50250076]
[1736961751306,0.47220196,99152.0,99151.0,0.00150076]
[1736961751710,0.47220196,99152.0,99151.0,0.00050076]
[1736961751932,0.47220196,99152.0,99151.0,0.00150076]
[1736961752444,0.47420196,99152.0,99151.0,0.00150076]
[1736961753150,0.47420196,99152.0,99151.0,0.00050076]
[1736961753550,0.47220196,99152.0,99151.0,0.00050076]
[1736961753954,0.47420196,99152.0,99151.0,0.00050076]
[1736961755389,0.46808196,99152.0,99151.0,0.00050076]
[1736961755619,0.47420196,99152.0,99151.0,0.00050076]
[1736961757566,0.47420196,99152.0,99151.0,0.00135616]
[1736961757797,0.27249196,99152.0,99151.0,0.00135616]
[1736961758198,0.16826504,99152.0,99151.0,0.00147764]
[1736961758604,0.16626504,99152.0,99151.0,0.00147764]
[1736961758806,0.16014504,99152.0,99151.0,0.00147764]
[1736961758936,0.16626504,99152.0,99151.0,0.00147764]
[1736961759340,0.01014504,99152.0,99151.0,0.12467764]
[1736961759521,0.00612,99157.0,99151.0,0.12467764]
[1736961759926,0.002,99152.0,99151.0,0.12467764]
[1736961760134,0.002,99152.0,99151.0,0.12567764]
[1736961760340,0.00612,99157.0,99156.0,0.00012148]
[1736961762562,0.00612,99157.0,99156.0,0.00112148]
[1736961762943,0.1,99199.0,99174.0,0.00012148]
[1736961763159,0.15,99175.0,99174.0,0.00012148]
[1736961763384,0.25422692,99175.0,99174.0,0.00012148]
[1736961763544,0.15,99175.0,99174.0,0.00012148]
[1736961763744,0.15612,99175.0,99174.0,0.00012148]
[1736961764153,0.01491351,99177.0,99175.0,0.00012148]
[1736961764415,0.15,99175.0,99169.0,0.00012148]
[1736961764614,0.152,99175.0,99170.0,0.00012148]
[1736961764758,0.00612,99174.0,99168.0,0.00012148]
[1736961764960,0.00612,99174.0,99173.0,0.00012148]
[1736961765762,0.00612,99174.0,99168.0,0.00012148]
[1736961765972,0.00612,99174.0,99173.0,0.00012148]
[1736961766329,0.002,99175.0,99173.0,0.00012148]
[1736961766530,0.00612,99174.0,99173.0,0.00012148]
[1736961766737,0.00812,99174.0,99173.0,0.00012148]
[1736961768322,0.00612,99174.0,99173.0,0.00012148]
[1736961770065,0.01191351,99177.0,99176.0,0.00012148]
[1736961770266,0.01803351,99177.0,99176.0,0.00012148]
[1736961772203,0.01191351,99177.0,99176.0,0.00012148]
[1736961772405,0.01191351,99177.0,99176.0,0.07642148]
[1736961773276,0.01191351,99177.0,99176.0,0.07742148]
[1736961773621,0.01191351,99177.0,99176.0,0.07642148]
[1736961773822,0.00179634,99177.0,99176.0,0.07842148]
[1736961774053,0.00179634,99177.0,99176.0,0.07742148]
[1736961774520,0.00179634,99177.0,99176.0,0.07842148]
[1736961775346,0.00179634,99177.0,99176.0,0.12642148]
[1736961775759,0.00179634,99177.0,99176.0,1.7306484]
[1736961775954,0.00179634,99177.0,99176.0,1.8306484]
[1736961776155,0.00179634,99177.0,99176.0,1.8326484]
[1736961776156,0.00279634,99177.0,99176.0,1.8326484]
[1736961776357,0.00179634,99177.0,99176.0,1.8286484]
[1736961776594,0.00179634,99177.0,99176.0,1.8336484]
[1736961776779,0.00279634,99177.0,99176.0,1.8356484]
[1736961777545,0.00279634,99177.0,99176.0,1.8306484]
[1736961778877,0.00179634,99177.0,99176.0,1.8286484]
[1736961779061,0.00279634,99177.0,99176.0,1.8356484]
[1736961779262,0.00279634,99177.0,99176.0,1.8336484]
[1736961779688,0.00379634,99177.0,99176.0,1.8306484]
[1736961779888,0.00379634,99177.0,99176.0,1.8356484]
[1736961780093,0.00179634,99177.0,99176.0,1.8336484]
[1736961780344,0.00179634,99177.0,99176.0,1.9286484]
[1736961780547,0.11676404,99240.0,99221.0,0.00012148]
[1736961780863,0.00608,99223.0,99221.0,0.00012148]
[1736961781055,0.01179776,99222.0,99221.0,0.00012148]
[1736961781292,0.0017955,99222.0,99221.0,0.00012148]
[1736961781677,0.0078755,99222.0,99221.0,0.00012148]
[1736961781878,0.00802482,99222.0,99221.0,0.00012148]
[1736961782091,0.00194482,99222.0,99221.0,1.50012148]
[1736961782259,0.00194482,99222.0,99221.0,1.57642148]
[1736961782670,0.00194482,99222.0,99221.0,1.7806484]
[1736961782877,0.00394482,99222.0,99221.0,1.8286484]
[1736961783262,0.00394482,99222.0,99221.0,1.8306484]
[1736961783626,0.00394482,99222.0,99221.0,1.8326484]
[1736961783797,0.00194482,99222.0,99221.0,1.8286484]
[1736961784026,0.00194482,99222.0,99221.0,1.8326484]
[1736961784197,0.00294482,99222.0,99221.0,1.8346484]
[1736961784347,0.00294482,99222.0,99221.0,1.7346484]
[1736961784542,0.00294482,99222.0,99221.0,1.73452692]
[1736961784747,0.00194482,99222.0,99221.0,1.73452692]
[1736961784957,0.00194482,99222.0,99221.0,1.8346484]
[1736961785153,0.00194482,99222.0,99221.0,1.8306484]
[1736961785355,0.00194482,99222.0,99221.0,1.7306484]
[1736961785584,0.00194482,99222.0,99221.0,1.73352692]
[1736961785765,0.00094482,99222.0,99221.0,1.7316484]
[1736961785963,0.00094482,99222.0,99221.0,1.73452692]
[1736961786383,0.00094482,99222.0,99221.0,1.62742148]
[1736961786583,0.00194482,99222.0,99221.0,1.63642148]
[1736961786820,0.00194482,99222.0,99221.0,1.63342148]
[1736961787163,0.00194482,99222.0,99221.0,1.63842148]
[1736961787416,0.00194482,99222.0,99221.0,1.62942148]
[1736961787625,0.00094482,99222.0,99221.0,1.62942148]
[1736961787830,0.00094482,99222.0,99221.0,1.63842148]
[1736961787831,0.00194482,99222.0,99221.0,1.63842148]
[1736961788235,0.00198482,99222.0,99221.0,1.63842148]
[1736961788364,0.00198482,99222.0,99221.0,1.63342148]
[1736961788583,0.00198482,99222.0,99221.0,1.63842148]
[1736961789410,0.01201995,99222.0,99221.0,0.01412148]
[1736961789832,0.01809995,99222.0,99221.0,1.51412148]
[1736961790243,0.01809995,99222.0,99221.0,1.50912148]
[1736961790669,0.01709995,99222.0,99221.0,1.50012148]
[1736961790854,0.01709995,99222.0,99221.0,1.50112148]
[1736961792126,0.01709995,99222.0,99221.0,1.50212148]
[1736961792336,0.01709995,99222.0,99221.0,1.50112148]
[1736961792933,0.01709995,99222.0,99221.0,0.00212148]
[1736961793769,0.01101995,99222.0,99221.0,0.00212148]
[1736961794265,0.01101995,99222.0,99221.0,0.07872148]
[1736961794266,0.00098482,99222.0,99221.0,0.07872148]
[1736961794465,0.00098482,99222.0,99221.0,1.57872148]
[1736961794658,0.00098482,99222.0,99221.0,1.62652148]
[1736961795077,0.00098482,99222.0,99221.0,1.62552148]
[1736961795286,0.00098482,99222.0,99221.0,1.62752148]
[1736961795558,0.00098482,99222.0,99221.0,1.62652148]
[1736961795759,0.00098482,99222.0,99221.0,1.63052148]
[1736961796539,0.00098482,99222.0,99221.0,1.5826]
[1736961796793,0.35255282,99222.0,99221.0,1.50612148]
[1736961796993,0.35255282,99222.0,99221.0,1.506]
[1736961797284,0.45677974,99222.0,99221.0,1.506]
[1736961797694,0.45677974,99222.0,99221.0,0.006]
[1736961798098,0.45677974,99222.0,99221.0,1.506]
[1736961798453,0.15,99216.0,99215.0,0.00012148]
[1736961798675,0.15,99216.0,99191.0,0.00012148]
[1736961798676,0.023,99213.0,99191.0,0.00012148]
[1736961798880,0.15,99190.0,99176.0,0.0008554]
[1736961799223,0.15,99177.0,99176.0,0.00097688]
[1736961800004,0.15,99177.0,99176.0,0.00797688]
[1736961800201,0.15,99177.0,99176.0,0.00097688]
[1736961800407,0.25422692,99177.0,99176.0,0.0018554]
[1736961801672,0.26413125,99177.0,99176.0,0.0018554]
[1736961801874,0.26413125,99177.0,99176.0,0.0028554]
[1736961802304,0.26417125,99177.0,99176.0,0.0028554]
[1736961802507,0.26417125,99177.0,99176.0,0.0018554]
[1736961802712,0.26417125,99177.0,99176.0,0.0028554]
[1736961802881,0.26417125,99177.0,99176.0,0.0018554]
[1736961803098,0.26717125,99177.0,99176.0,0.0008554]
[1736961803485,0.16394433,99177.0,99176.0,0.0008554]
[1736961803905,0.17002433,99177.0,99176.0,0.00097688]
[1736961804419,0.02002433,99177.0,99176.0,0.00097688]
[1736961804653,0.02302433,99177.0,99176.0,0.00097688]
[1736961804832,0.02202433,99177.0,99176.0,0.00097688]
[1736961805027,0.01602433,99177.0,99176.0,1.50097688]
[1736961805254,0.01702433,99177.0,99176.0,1.50097688]
[1736961805493,0.01902433,99177.0,99176.0,1.50097688]
[1736961805694,0.01602433,99177.0,99176.0,1.50097688]
[1736961805828,0.01602433,99177.0,99176.0,1.50197688]
[1736961806832,0.01602433,99177.0,99176.0,1.50397688]
[1736961807061,4e-05,99177.0,99176.0,1.50397688]
[1736961807241,4e-05,99177.0,99176.0,1.58457688]
[1736961807973,4e-05,99177.0,99176.0,1.58057688]
[1736961808174,4e-05,99177.0,99176.0,1.58657688]
[1736961808296,4e-05,99177.0,99176.0,1.58257688]
[1736961808686,4e-05,99177.0,99176.0,1.50397688]
[1736961808845,4e-05,99177.0,99176.0,0.006]
[1736961809050,4e-05,99177.0,99176.0,0.002]
[1736961809248,4e-05,99177.0,99176.0,0.004]
[1736961809648,0.25426692,99177.0,99176.0,0.006]
[1736961811298,0.25426692,99177.0,99176.0,0.004]
[1736961811505,0.351673,99170.0,99169.0,0.0008554]
[1736961811716,0.351673,99170.0,99169.0,0.00095616]
[1736961813309,0.352673,99170.0,99169.0,0.00095616]
[1736961816203,0.36286152,99170.0,99169.0,0.00095616]
[1736961817039,0.01726852,99170.0,99169.0,0.07795616]
[1736961817545,0.01726852,99170.0,99169.0,1.57795616]
[1736961817931,0.01726852,99170.0,99169.0,1.58349899]
[1736961818317,0.01626852,99170.0,99169.0,1.58349899]
[1736961818517,0.01726852,99170.0,99169.0,1.58849899]
[1736961818717,0.01726852,99170.0,99169.0,1.59049899]
[1736961818929,0.01626852,99170.0,99169.0,1.58549899]
[1736961819131,0.01626852,99170.0,99169.0,1.58749899]
[1736961819681,0.00608,99170.0,99169.0,1.58749899]
[1736961820084,0.207753,99170.0,99169.0,1.58749899]
[1736961820443,0.207753,99170.0,99169.0,1.58949899]
[1736961821719,0.207753,99170.0,99169.0,0.08949899]
[1736961822042,0.207753,99170.0,99169.0,0.08349899]
[1736961822265,0.207753,99170.0,99169.0,0.08449899]
[1736961822449,0.207753,99170.0,99169.0,0.08649899]
[1736961823106,0.357753,99170.0,99169.0,0.00949899]
[1736961823314,0.46197992,99170.0,99169.0,0.00949899]
[1736961823746,0.46197992,99170.0,99169.0,0.00849899]
[1736961823965,0.46197992,99170.0,99169.0,0.01049899]
[1736961824169,0.48497992,99170.0,99169.0,0.01049899]
[1736961824502,0.48497992,99170.0,99169.0,0.00649899]
[1736961824725,0.48597992,99170.0,99169.0,0.00649899]
[1736961824923,0.48597992,99170.0,99169.0,0.00949899]
[1736961825181,0.48497992,99170.0,99169.0,0.00649899]
[1736961825383,0.48897992,99170.0,99169.0,0.00649899]
[1736961825592,0.48997992,99170.0,99169.0,0.00649899]
[1736961832719,0.35171,99152.0,99151.0,0.0012554]
[1736961833040,0.45593692,99152.0,99151.0,0.0012554]
[1736961834658,0.45593692,99152.0,99151.0,0.0032554]
[1736961835084,0.45693692,99152.0,99151.0,0.0032554]
[1736961835325,0.45693692,99152.0,99151.0,0.0012554]
[1736961835326,0.45593692,99152.0,99151.0,0.0012554]
[1736961835722,0.46193692,99152.0,99151.0,0.0022554]
[1736961836805,0.47189906,99152.0,99151.0,0.0022554]